[Event "Titled Tuesday Blitz July 13 2021"]
[White "Bilych, Olexiy"]
[Black "Stoyanov, Tsvetan"]
[WhiteFideId "14156504"]
[BlackFideId "2917173"]
[WhiteElo "2246"]
[BlackElo "2198"]
[Result "1/2-1/2"]
[Round "10"]
[TimeControl "180+1"]
[Date "2021.07.13"]
[WhiteClock "0:00:18"]
[BlackClock "0:00:23"]

1. e4 {[%clk 0:03:00]}  e5 {[%clk 0:02:57]} 2. Nf3 {[%clk 0:03:00]}  Nc6 {[%clk 0:02:55]} 3. Bc4 {[%clk 0:03:00]}  Nf6 {[%clk 0:02:54]} 4. d3 {[%clk 0:03:00]}  Bc5 {[%clk 0:02:54]} 5. c3 {[%clk 0:03:00]}  O-O {[%clk 0:02:52]} 6. O-O {[%clk 0:03:00]}  d6 {[%clk 0:02:51]} 7. Re1 {[%clk 0:02:59]}  h6 {[%clk 0:02:49]} 8. h3 {[%clk 0:02:55]}  a6 {[%clk 0:02:49]} 9. a4 {[%clk 0:02:55]}  Ba7 {[%clk 0:02:45]} 10. a5 {[%clk 0:02:54]}  Be6 {[%clk 0:02:44]} 11. Bxe6 {[%clk 0:02:52]}  fxe6 {[%clk 0:02:44]} 12. d4 {[%clk 0:02:49]}  exd4 {[%clk 0:02:33]} 13. cxd4 {[%clk 0:02:49]}  e5 {[%clk 0:02:24]} 14. Qb3+ {[%clk 0:02:35]}  Kh7 {[%clk 0:02:23]} 15. Qxb7 {[%clk 0:02:35]}  Nxd4 {[%clk 0:02:21]} 16. Nxd4 {[%clk 0:02:34]}  Bxd4 {[%clk 0:02:21]} 17. Be3 {[%clk 0:02:35]}  Bxe3 {[%clk 0:01:59]} 18. Rxe3 {[%clk 0:02:34]}  Nd7 {[%clk 0:02:00]} 19. Nc3 {[%clk 0:02:29]}  Nc5 {[%clk 0:01:56]} 20. Qd5 {[%clk 0:02:26]}  Rb8 {[%clk 0:01:53]} 21. Re2 {[%clk 0:02:16]}  Nb3 {[%clk 0:01:49]} 22. Rd1 {[%clk 0:02:06]}  Nd4 {[%clk 0:01:48]} 23. Rxd4 {[%clk 0:01:59]}  exd4 {[%clk 0:01:48]} 24. Qxd4 {[%clk 0:02:00]}  Qf6 {[%clk 0:01:33]} 25. Qd3 {[%clk 0:01:50]}  Qe5 {[%clk 0:01:25]} 26. Qxa6 {[%clk 0:01:49]}  Ra8 {[%clk 0:01:24]} 27. Qc4 {[%clk 0:01:48]}  Qxa5 {[%clk 0:01:21]} 28. g3 {[%clk 0:01:24]}  Qa6 {[%clk 0:00:58]} 29. Qd4 {[%clk 0:01:00]}  Rab8 {[%clk 0:00:54]} 30. Rd2 {[%clk 0:00:52]}  Qb6 {[%clk 0:00:52]} 31. Qc4 {[%clk 0:00:50]}  Rf3 {[%clk 0:00:49]} 32. Kg2 {[%clk 0:00:50]}  Rbf8 {[%clk 0:00:48]} 33. Nd1 {[%clk 0:00:44]}  R3f6 {[%clk 0:00:42]} 34. Ne3 {[%clk 0:00:43]}  Qa5 {[%clk 0:00:41]} 35. Rc2 {[%clk 0:00:40]}  Qe1 {[%clk 0:00:33]} 36. Ng4 {[%clk 0:00:36]}  R6f7 {[%clk 0:00:29]} 37. Re2 {[%clk 0:00:36]}  Qb1 {[%clk 0:00:28]} 38. Rc2 {[%clk 0:00:32]}  h5 {[%clk 0:00:26]} 39. Ne3 {[%clk 0:00:32]}  Qe1 {[%clk 0:00:26]} 40. Nf5 {[%clk 0:00:31]}  g6 {[%clk 0:00:26]} 41. Re2 {[%clk 0:00:31]}  Qd1 {[%clk 0:00:26]} 42. Ne3 {[%clk 0:00:29]}  Qb1 {[%clk 0:00:25]} 43. Nd5 {[%clk 0:00:26]}  Qd1 {[%clk 0:00:24]} 44. Ne3 {[%clk 0:00:24]}  Qb1 {[%clk 0:00:23]} 45. Nd5 {[%clk 0:00:18]}  Qd1 {[%clk 0:00:23]} 46. Ne3 {[%clk 0:00:18]} 1/2-1/2


[Site "https://www.chess.com"]

[Event "Titled Tuesday Blitz July 13 2021"]
[White "Chigaev, Maksim"]
[Black "Djordjevic, Vuk"]
[WhiteFideId "4108116"]
[BlackFideId "902098"]
[WhiteElo "2646"]
[BlackElo "2463"]
[Result "1-0"]
[Round "10"]
[TimeControl "180+1"]
[Date "2021.07.13"]
[WhiteClock "0:00:38"]
[BlackClock "0:01:31"]

1. d4 {[%clk 0:03:00]}  Nf6 {[%clk 0:02:59]} 2. c4 {[%clk 0:03:01]}  e6 {[%clk 0:02:59]} 3. Nf3 {[%clk 0:03:01]}  b6 {[%clk 0:03:00]} 4. g3 {[%clk 0:03:02]}  Ba6 {[%clk 0:03:00]} 5. Qc2 {[%clk 0:03:01]}  Bb7 {[%clk 0:02:58]} 6. Bg2 {[%clk 0:03:02]}  c5 {[%clk 0:02:59]} 7. d5 {[%clk 0:03:02]}  exd5 {[%clk 0:03:00]} 8. cxd5 {[%clk 0:03:03]}  Nxd5 {[%clk 0:03:00]} 9. O-O {[%clk 0:03:03]}  Be7 {[%clk 0:03:01]} 10. Rd1 {[%clk 0:03:04]}  Qc8 {[%clk 0:03:01]} 11. a3 {[%clk 0:03:00]}  Nf6 {[%clk 0:03:00]} 12. Nc3 {[%clk 0:02:55]}  d5 {[%clk 0:02:56]} 13. Bf4 {[%clk 0:02:55]}  d4 {[%clk 0:02:47]} 14. Nb5 {[%clk 0:02:55]}  O-O {[%clk 0:02:45]} 15. Nfxd4 {[%clk 0:01:43]}  Bxg2 {[%clk 0:02:30]} 16. Nf5 {[%clk 0:01:44]}  Qb7 {[%clk 0:02:14]} 17. Nxe7+ {[%clk 0:01:39]}  Kh8 {[%clk 0:02:14]} 18. Nc7 {[%clk 0:01:15]}  Bh3 {[%clk 0:02:00]} 19. f3 {[%clk 0:01:15]}  Na6 {[%clk 0:01:55]} 20. Ncd5 {[%clk 0:00:41]}  Rad8 {[%clk 0:01:31]} 21. Nxf6 {[%clk 0:00:38]}  Qxe7 {[%clk 0:01:31]} 22. Qxh7# {[%clk 0:00:38]} 1-0


[Site "https://www.chess.com"]

[Event "Titled Tuesday Blitz July 13 2021"]
[White "Florescu, Codrut-Constantin"]
[Black "Szente Varga, Fruzsina"]
[WhiteFideId "1202200"]
[BlackFideId "712264"]
[WhiteElo "2243"]
[BlackElo "2106"]
[Result "1-0"]
[Round "10"]
[TimeControl "180+1"]
[Date "2021.07.13"]
[WhiteClock "0:01:10"]
[BlackClock "0:00:36"]

1. d4 {[%clk 0:03:00]}  Nf6 {[%clk 0:02:57]} 2. c4 {[%clk 0:03:00]}  g6 {[%clk 0:02:57]} 3. Nc3 {[%clk 0:03:00]}  Bg7 {[%clk 0:02:58]} 4. e4 {[%clk 0:03:00]}  d6 {[%clk 0:02:58]} 5. f3 {[%clk 0:03:00]}  O-O {[%clk 0:02:59]} 6. Bg5 {[%clk 0:03:01]}  c5 {[%clk 0:02:58]} 7. d5 {[%clk 0:03:01]}  e6 {[%clk 0:02:58]} 8. Qd2 {[%clk 0:03:01]}  Qb6 {[%clk 0:02:50]} 9. Bd3 {[%clk 0:02:57]}  exd5 {[%clk 0:02:46]} 10. exd5 {[%clk 0:02:57]}  Re8+ {[%clk 0:02:46]} 11. Nge2 {[%clk 0:02:56]}  Nbd7 {[%clk 0:02:44]} 12. b3 {[%clk 0:02:38]}  Ne5 {[%clk 0:02:37]} 13. Bc2 {[%clk 0:02:38]}  Bd7 {[%clk 0:02:14]} 14. O-O {[%clk 0:02:37]}  a6 {[%clk 0:01:52]} 15. h3 {[%clk 0:02:37]}  Bc8 {[%clk 0:01:50]} 16. f4 {[%clk 0:02:36]}  Ned7 {[%clk 0:01:50]} 17. g4 {[%clk 0:02:25]}  h6 {[%clk 0:01:39]} 18. Bh4 {[%clk 0:02:24]}  Nh7 {[%clk 0:01:39]} 19. Bg3 {[%clk 0:02:10]}  Qb4 {[%clk 0:01:38]} 20. a3 {[%clk 0:02:05]}  Rxe2 {[%clk 0:01:24]} 21. Qxe2 {[%clk 0:02:00]}  Qxc3 {[%clk 0:01:24]} 22. Kg2 {[%clk 0:01:54]}  Ndf8 {[%clk 0:01:07]} 23. Rae1 {[%clk 0:01:49]}  Bd7 {[%clk 0:01:07]} 24. Qd3 {[%clk 0:01:43]}  Qa5 {[%clk 0:01:05]} 25. f5 {[%clk 0:01:39]}  Qxa3 {[%clk 0:00:55]} 26. fxg6 {[%clk 0:01:36]}  Nxg6 {[%clk 0:00:55]} 27. Rxf7 {[%clk 0:01:31]}  Be8 {[%clk 0:00:41]} 28. Rxe8+ {[%clk 0:01:25]}  Rxe8 {[%clk 0:00:42]} 29. Qxg6 {[%clk 0:01:18]}  Qb2 {[%clk 0:00:35]} 30. Rxg7+ {[%clk 0:01:15]}  Qxg7 {[%clk 0:00:35]} 31. Qxe8+ {[%clk 0:01:14]}  Nf8 {[%clk 0:00:36]} 32. Bxd6 {[%clk 0:01:10]} 1-0


[Site "https://www.chess.com"]

[Event "Titled Tuesday Blitz July 13 2021"]
[White "Garcia, Gabriel Gonzaga"]
[Black "Wilson, Elvin"]
[WhiteFideId "2138956"]
[BlackFideId "2014874"]
[WhiteElo "2240"]
[BlackElo "2309"]
[Result "1/2-1/2"]
[Round "10"]
[TimeControl "180+1"]
[Date "2021.07.13"]
[WhiteClock "0:00:46"]
[BlackClock "0:00:15"]

1. e4 {[%clk 0:03:00]}  e6 {[%clk 0:02:58]} 2. Nf3 {[%clk 0:03:00]}  d5 {[%clk 0:02:57]} 3. Nc3 {[%clk 0:03:01]}  Nf6 {[%clk 0:02:57]} 4. e5 {[%clk 0:03:01]}  Nfd7 {[%clk 0:02:57]} 5. d4 {[%clk 0:03:01]}  c5 {[%clk 0:02:57]} 6. dxc5 {[%clk 0:03:02]}  Nc6 {[%clk 0:02:57]} 7. Bf4 {[%clk 0:03:02]}  Bxc5 {[%clk 0:02:58]} 8. Bd3 {[%clk 0:03:03]}  f6 {[%clk 0:02:57]} 9. exf6 {[%clk 0:03:03]}  Qxf6 {[%clk 0:02:57]} 10. Bg5 {[%clk 0:03:04]}  Qf7 {[%clk 0:02:56]} 11. Bh4 {[%clk 0:03:05]}  h6 {[%clk 0:02:52]} 12. Bg3 {[%clk 0:03:02]}  O-O {[%clk 0:02:46]} 13. O-O {[%clk 0:03:02]}  a6 {[%clk 0:02:45]} 14. a3 {[%clk 0:03:01]}  Qf6 {[%clk 0:02:30]} 15. Re1 {[%clk 0:02:55]}  Nd4 {[%clk 0:02:28]} 16. Nxd4 {[%clk 0:02:47]}  Bxd4 {[%clk 0:02:28]} 17. Qd2 {[%clk 0:02:48]}  Nc5 {[%clk 0:02:23]} 18. Bf1 {[%clk 0:02:24]}  Bd7 {[%clk 0:02:14]} 19. Rad1 {[%clk 0:02:23]}  Bxc3 {[%clk 0:01:58]} 20. bxc3 {[%clk 0:02:23]}  Ne4 {[%clk 0:01:47]} 21. Rxe4 {[%clk 0:02:23]}  dxe4 {[%clk 0:01:47]} 22. Bc4 {[%clk 0:01:55]}  Bc6 {[%clk 0:01:35]} 23. Qe3 {[%clk 0:01:34]}  Bd5 {[%clk 0:01:20]} 24. Bxd5 {[%clk 0:01:33]}  exd5 {[%clk 0:01:20]} 25. Rxd5 {[%clk 0:01:30]}  Rad8 {[%clk 0:01:14]} 26. Rd4 {[%clk 0:01:29]}  Rxd4 {[%clk 0:01:03]} 27. cxd4 {[%clk 0:01:30]}  Qe6 {[%clk 0:01:01]} 28. Be5 {[%clk 0:01:25]}  Qf5 {[%clk 0:00:52]} 29. Qg3 {[%clk 0:01:18]}  Rf7 {[%clk 0:00:51]} 30. h3 {[%clk 0:01:11]}  b5 {[%clk 0:00:50]} 31. d5 {[%clk 0:00:55]}  Re7 {[%clk 0:00:41]} 32. d6 {[%clk 0:00:55]}  Rxe5 {[%clk 0:00:37]} 33. d7 {[%clk 0:00:56]}  Rd5 {[%clk 0:00:36]} 34. Qb8+ {[%clk 0:00:56]}  Qf8 {[%clk 0:00:34]} 35. Qe8 {[%clk 0:00:48]}  a5 {[%clk 0:00:18]} 36. Qe6+ {[%clk 0:00:45]}  Qf7 {[%clk 0:00:18]} 37. Qe8+ {[%clk 0:00:46]}  Qf8 {[%clk 0:00:14]} 38. Qe6+ {[%clk 0:00:46]}  Qf7 {[%clk 0:00:14]} 39. Qe8+ {[%clk 0:00:46]}  Qf8 {[%clk 0:00:15]} 1/2-1/2


[Site "https://www.chess.com"]

[Event "Titled Tuesday Blitz July 13 2021"]
[White "Gelman, Alexander"]
[Black "Tanenbaum, Zachary"]
[WhiteFideId "4118316"]
[BlackFideId "2060850"]
[WhiteElo "2375"]
[BlackElo "2165"]
[Result "0-1"]
[Round "10"]
[TimeControl "180+1"]
[Date "2021.07.13"]
[WhiteClock "0:00:32"]
[BlackClock "0:01:07"]

1. d4 {[%clk 0:03:00]}  d5 {[%clk 0:03:00]} 2. Nc3 {[%clk 0:03:01]}  Nf6 {[%clk 0:03:00]} 3. Bf4 {[%clk 0:03:01]}  a6 {[%clk 0:02:59]} 4. e3 {[%clk 0:03:01]}  Bf5 {[%clk 0:03:00]} 5. Nf3 {[%clk 0:02:58]}  e6 {[%clk 0:03:00]} 6. Ne5 {[%clk 0:02:59]}  h6 {[%clk 0:02:49]} 7. g4 {[%clk 0:02:58]}  Be4 {[%clk 0:02:48]} 8. f3 {[%clk 0:02:57]}  Bh7 {[%clk 0:02:49]} 9. h4 {[%clk 0:02:57]}  Nfd7 {[%clk 0:02:48]} 10. Qd2 {[%clk 0:02:52]}  Nxe5 {[%clk 0:02:46]} 11. Bxe5 {[%clk 0:02:52]}  Nd7 {[%clk 0:02:46]} 12. Bh2 {[%clk 0:02:45]}  Qxh4+ {[%clk 0:02:45]} 13. Ke2 {[%clk 0:02:28]}  c5 {[%clk 0:02:40]} 14. Bg2 {[%clk 0:02:28]}  Qd8 {[%clk 0:02:26]} 15. Rad1 {[%clk 0:02:17]}  Rc8 {[%clk 0:02:25]} 16. Kf2 {[%clk 0:02:16]}  cxd4 {[%clk 0:02:19]} 17. exd4 {[%clk 0:02:16]}  Bb4 {[%clk 0:02:17]} 18. Bf4 {[%clk 0:02:12]}  Qa5 {[%clk 0:02:12]} 19. g5 {[%clk 0:02:00]}  Bxc3 {[%clk 0:02:09]} 20. bxc3 {[%clk 0:01:59]}  hxg5 {[%clk 0:01:40]} 21. Bxg5 {[%clk 0:01:58]}  Qxc3 {[%clk 0:01:40]} 22. Qe2 {[%clk 0:01:39]}  Qxc2 {[%clk 0:01:39]} 23. Rd2 {[%clk 0:01:38]}  Qc4 {[%clk 0:01:39]} 24. Qe3 {[%clk 0:01:35]}  O-O {[%clk 0:01:27]} 25. Bf1 {[%clk 0:01:24]}  Qb4 {[%clk 0:01:24]} 26. Kg3 {[%clk 0:01:00]}  Rc3 {[%clk 0:01:17]} 27. Qf4 {[%clk 0:00:54]}  f6 {[%clk 0:01:13]} 28. Qh4 {[%clk 0:00:46]}  Rxf3+ {[%clk 0:01:11]} 29. Kg2 {[%clk 0:00:44]}  Be4 {[%clk 0:01:08]} 30. Kg1 {[%clk 0:00:32]}  Rxf1+ {[%clk 0:01:07]} 31. Kxf1 {[%clk 0:00:32]}  fxg5+ {[%clk 0:01:07]} 0-1


[Site "https://www.chess.com"]

[Event "Titled Tuesday Blitz July 13 2021"]
[White "Hansen, Sune Berg"]
[Black "Obolentseva, Alexandra"]
[WhiteFideId "1400266"]
[BlackFideId "24153648"]
[WhiteElo "2628"]
[BlackElo "2113"]
[Result "1-0"]
[Round "10"]
[TimeControl "180+1"]
[Date "2021.07.13"]
[WhiteClock "0:00:53"]
[BlackClock "0:00:17"]

1. e4 {[%clk 0:03:00]}  c5 {[%clk 0:02:55]} 2. Nc3 {[%clk 0:03:00]}  d6 {[%clk 0:02:53]} 3. d4 {[%clk 0:02:59]}  cxd4 {[%clk 0:02:51]} 4. Qxd4 {[%clk 0:03:00]}  Nc6 {[%clk 0:02:47]} 5. Qd2 {[%clk 0:03:00]}  Nf6 {[%clk 0:02:42]} 6. b3 {[%clk 0:02:59]}  g6 {[%clk 0:02:36]} 7. Bb2 {[%clk 0:02:59]}  Bg7 {[%clk 0:02:34]} 8. O-O-O {[%clk 0:02:58]}  O-O {[%clk 0:02:34]} 9. Kb1 {[%clk 0:02:58]}  a6 {[%clk 0:02:22]} 10. f3 {[%clk 0:02:55]}  b5 {[%clk 0:02:20]} 11. g4 {[%clk 0:02:55]}  Bb7 {[%clk 0:02:19]} 12. g5 {[%clk 0:02:50]}  Nd7 {[%clk 0:02:14]} 13. h4 {[%clk 0:02:47]}  Re8 {[%clk 0:01:39]} 14. h5 {[%clk 0:02:47]}  Nf8 {[%clk 0:01:39]} 15. hxg6 {[%clk 0:02:46]}  fxg6 {[%clk 0:01:40]} 16. Nge2 {[%clk 0:02:31]}  Ne5 {[%clk 0:01:35]} 17. f4 {[%clk 0:02:29]}  Ng4 {[%clk 0:01:24]} 18. Ng3 {[%clk 0:02:10]}  Qb6 {[%clk 0:01:18]} 19. Nd5 {[%clk 0:01:39]}  Bxd5 {[%clk 0:01:15]} 20. Qxd5+ {[%clk 0:01:38]}  e6 {[%clk 0:01:08]} 21. Qxd6 {[%clk 0:01:37]}  Qxd6 {[%clk 0:00:49]} 22. Rxd6 {[%clk 0:01:36]}  Red8 {[%clk 0:00:48]} 23. Rxd8 {[%clk 0:01:31]}  Rxd8 {[%clk 0:00:49]} 24. Be2 {[%clk 0:01:28]}  Bxb2 {[%clk 0:00:43]} 25. Kxb2 {[%clk 0:01:27]}  Ne3 {[%clk 0:00:43]} 26. Bd3 {[%clk 0:01:19]}  e5 {[%clk 0:00:39]} 27. f5 {[%clk 0:01:18]}  Ng2 {[%clk 0:00:37]} 28. a4 {[%clk 0:01:06]}  Nf4 {[%clk 0:00:31]} 29. Rd1 {[%clk 0:01:03]}  Nxd3+ {[%clk 0:00:26]} 30. Rxd3 {[%clk 0:01:03]}  Rxd3 {[%clk 0:00:25]} 31. cxd3 {[%clk 0:01:03]}  Kf7 {[%clk 0:00:24]} 32. axb5 {[%clk 0:01:02]}  axb5 {[%clk 0:00:22]} 33. Kc3 {[%clk 0:01:03]}  gxf5 {[%clk 0:00:19]} 34. exf5 {[%clk 0:01:01]}  Nd7 {[%clk 0:00:19]} 35. Kb4 {[%clk 0:00:57]}  Nb6 {[%clk 0:00:19]} 36. Kc5 {[%clk 0:00:56]}  Nd7+ {[%clk 0:00:19]} 37. Kxb5 {[%clk 0:00:56]}  e4 {[%clk 0:00:19]} 38. Nxe4 {[%clk 0:00:55]}  Ne5 {[%clk 0:00:19]} 39. d4 {[%clk 0:00:55]}  Nf3 {[%clk 0:00:18]} 40. Kc5 {[%clk 0:00:53]}  Ke7 {[%clk 0:00:17]} 41. b4 {[%clk 0:00:53]} 1-0


[Site "https://www.chess.com"]

[Event "Titled Tuesday Blitz July 13 2021"]
[White "Hebden, Mark L"]
[Black "Horak, Martin"]
[WhiteFideId "400084"]
[BlackFideId "367095"]
[WhiteElo "2457"]
[BlackElo "1997"]
[Result "1-0"]
[Round "10"]
[TimeControl "180+1"]
[Date "2021.07.13"]
[WhiteClock "0:01:53"]
[BlackClock "0:00:32"]

1. d4 {[%clk 0:03:00]}  Nf6 {[%clk 0:03:00]} 2. Nf3 {[%clk 0:03:01]}  e6 {[%clk 0:02:59]} 3. c3 {[%clk 0:03:00]}  d5 {[%clk 0:02:57]} 4. Bg5 {[%clk 0:03:00]}  c5 {[%clk 0:02:52]} 5. e3 {[%clk 0:02:59]}  Qb6 {[%clk 0:02:51]} 6. Qb3 {[%clk 0:02:58]}  Nc6 {[%clk 0:02:43]} 7. Nbd2 {[%clk 0:02:55]}  Bd6 {[%clk 0:02:28]} 8. dxc5 {[%clk 0:02:38]}  Bxc5 {[%clk 0:02:22]} 9. Bd3 {[%clk 0:02:33]}  O-O {[%clk 0:02:09]} 10. O-O {[%clk 0:02:29]}  Bd7 {[%clk 0:02:01]} 11. Qc2 {[%clk 0:02:24]}  Kh8 {[%clk 0:01:26]} 12. Rad1 {[%clk 0:02:18]}  Rac8 {[%clk 0:01:22]} 13. a3 {[%clk 0:02:08]}  Be7 {[%clk 0:01:10]} 14. e4 {[%clk 0:02:00]}  Nxe4 {[%clk 0:00:46]} 15. Nxe4 {[%clk 0:01:58]}  dxe4 {[%clk 0:00:45]} 16. Bxe4 {[%clk 0:01:57]}  Rcd8 {[%clk 0:00:32]} 17. Bxc6 {[%clk 0:01:53]} 1-0


[Site "https://www.chess.com"]

[Event "Titled Tuesday Blitz July 13 2021"]
[White "Howell, David W L"]
[Black "Nakamura, Hikaru"]
[WhiteFideId "410608"]
[BlackFideId "2016192"]
[WhiteElo "2643"]
[BlackElo "2900"]
[Result "1/2-1/2"]
[Round "10"]
[TimeControl "180+1"]
[Date "2021.07.13"]
[WhiteClock "0:00:45"]
[BlackClock "0:00:34"]

1. d4 {[%clk 0:02:59]}  Nf6 {[%clk 0:02:58]} 2. c4 {[%clk 0:02:58]}  e6 {[%clk 0:02:58]} 3. Nc3 {[%clk 0:02:56]}  Bb4 {[%clk 0:02:57]} 4. Qc2 {[%clk 0:02:57]}  O-O {[%clk 0:02:56]} 5. a3 {[%clk 0:02:55]}  Bxc3+ {[%clk 0:02:56]} 6. Qxc3 {[%clk 0:02:56]}  d5 {[%clk 0:02:56]} 7. Nf3 {[%clk 0:02:50]}  dxc4 {[%clk 0:02:56]} 8. Qxc4 {[%clk 0:02:49]}  b6 {[%clk 0:02:56]} 9. Bg5 {[%clk 0:02:50]}  Ba6 {[%clk 0:02:54]} 10. Qa4 {[%clk 0:02:49]}  Qe7 {[%clk 0:02:52]} 11. Rc1 {[%clk 0:02:32]}  Rd8 {[%clk 0:02:39]} 12. e3 {[%clk 0:02:11]}  Bxf1 {[%clk 0:02:38]} 13. Kxf1 {[%clk 0:02:11]}  h6 {[%clk 0:02:35]} 14. Bxf6 {[%clk 0:02:08]}  gxf6 {[%clk 0:02:33]} 15. Ke2 {[%clk 0:01:58]}  c6 {[%clk 0:02:15]} 16. Rhd1 {[%clk 0:01:55]}  a6 {[%clk 0:02:13]} 17. Kf1 {[%clk 0:01:50]}  Ra7 {[%clk 0:02:14]} 18. Qb3 {[%clk 0:01:42]}  Rb7 {[%clk 0:02:11]} 19. Rd2 {[%clk 0:01:39]}  Rc8 {[%clk 0:02:04]} 20. Rdc2 {[%clk 0:01:38]}  c5 {[%clk 0:01:57]} 21. dxc5 {[%clk 0:01:29]}  Rxc5 {[%clk 0:01:35]} 22. Rxc5 {[%clk 0:01:28]}  bxc5 {[%clk 0:01:35]} 23. Qc2 {[%clk 0:01:26]}  Nd7 {[%clk 0:01:33]} 24. Nd2 {[%clk 0:01:23]}  Qd6 {[%clk 0:01:31]} 25. Kg1 {[%clk 0:01:19]}  Qd5 {[%clk 0:01:28]} 26. h3 {[%clk 0:01:18]}  Kg7 {[%clk 0:01:21]} 27. Nc4 {[%clk 0:01:14]}  Ne5 {[%clk 0:01:13]} 28. Qe2 {[%clk 0:00:56]}  Nxc4 {[%clk 0:00:58]} 29. Qxc4 {[%clk 0:00:56]}  Qxc4 {[%clk 0:00:50]} 30. Rxc4 {[%clk 0:00:56]}  Rxb2 {[%clk 0:00:50]} 31. Rxc5 {[%clk 0:00:56]}  Rb1+ {[%clk 0:00:43]} 32. Kh2 {[%clk 0:00:55]}  Rb6 {[%clk 0:00:43]} 33. g4 {[%clk 0:00:52]}  Kg6 {[%clk 0:00:44]} 34. Kg3 {[%clk 0:00:51]}  Kg7 {[%clk 0:00:44]} 35. h4 {[%clk 0:00:51]}  Rb3 {[%clk 0:00:44]} 36. Ra5 {[%clk 0:00:51]}  Rb6 {[%clk 0:00:43]} 37. Kf4 {[%clk 0:00:51]}  Rb2 {[%clk 0:00:42]} 38. Kg3 {[%clk 0:00:49]}  Rb6 {[%clk 0:00:42]} 39. f3 {[%clk 0:00:47]}  Rb3 {[%clk 0:00:40]} 40. e4 {[%clk 0:00:47]}  Rb6 {[%clk 0:00:40]} 41. Kf4 {[%clk 0:00:47]}  Kf8 {[%clk 0:00:39]} 42. h5 {[%clk 0:00:46]}  Ke7 {[%clk 0:00:39]} 43. Kg3 {[%clk 0:00:44]}  Rc6 {[%clk 0:00:38]} 44. Kf4 {[%clk 0:00:44]}  Rb6 {[%clk 0:00:38]} 45. Ke3 {[%clk 0:00:45]}  Rb3+ {[%clk 0:00:36]} 46. Kf4 {[%clk 0:00:45]}  Rb6 {[%clk 0:00:34]} 1/2-1/2


[Site "https://www.chess.com"]

[Event "Titled Tuesday Blitz July 13 2021"]
[White "Ibrahimli, Murad"]
[Black "Csonka, Balazs"]
[WhiteFideId "13410229"]
[BlackFideId "742910"]
[WhiteElo "2109"]
[BlackElo "2404"]
[Result "1/2-1/2"]
[Round "10"]
[TimeControl "180+1"]
[Date "2021.07.13"]
[WhiteClock "0:00:14"]
[BlackClock "0:00:08"]

1. Nf3 {[%clk 0:03:00]}  e6 {[%clk 0:02:58]} 2. g3 {[%clk 0:02:59]}  b6 {[%clk 0:02:56]} 3. Bg2 {[%clk 0:03:00]}  Bb7 {[%clk 0:02:57]} 4. O-O {[%clk 0:03:00]}  Nf6 {[%clk 0:02:55]} 5. c4 {[%clk 0:03:00]}  Be7 {[%clk 0:02:55]} 6. Nc3 {[%clk 0:02:59]}  O-O {[%clk 0:02:55]} 7. Re1 {[%clk 0:03:00]}  Ne4 {[%clk 0:02:53]} 8. Nxe4 {[%clk 0:03:00]}  Bxe4 {[%clk 0:02:53]} 9. d3 {[%clk 0:03:00]}  Bb7 {[%clk 0:02:52]} 10. d4 {[%clk 0:03:01]}  Be4 {[%clk 0:02:50]} 11. Bf1 {[%clk 0:02:54]}  Bxf3 {[%clk 0:02:44]} 12. exf3 {[%clk 0:02:55]}  d5 {[%clk 0:02:44]} 13. cxd5 {[%clk 0:02:51]}  Qxd5 {[%clk 0:02:43]} 14. f4 {[%clk 0:02:51]}  Qd7 {[%clk 0:01:59]} 15. Bg2 {[%clk 0:02:41]}  c6 {[%clk 0:01:59]} 16. Be3 {[%clk 0:02:06]}  Na6 {[%clk 0:01:47]} 17. Qa4 {[%clk 0:02:05]}  Nb4 {[%clk 0:01:46]} 18. a3 {[%clk 0:01:53]}  Nd5 {[%clk 0:01:45]} 19. Bd2 {[%clk 0:01:53]}  Bf6 {[%clk 0:01:40]} 20. Rac1 {[%clk 0:01:51]}  Rac8 {[%clk 0:01:38]} 21. h4 {[%clk 0:01:44]}  h5 {[%clk 0:01:26]} 22. Rc2 {[%clk 0:01:32]}  Rfd8 {[%clk 0:01:20]} 23. Rec1 {[%clk 0:01:28]}  Ne7 {[%clk 0:00:59]} 24. d5 {[%clk 0:01:08]}  Nxd5 {[%clk 0:00:28]} 25. Bf3 {[%clk 0:00:59]}  g6 {[%clk 0:00:24]} 26. b4 {[%clk 0:00:52]}  Rc7 {[%clk 0:00:18]} 27. Kg2 {[%clk 0:00:41]}  Rdc8 {[%clk 0:00:17]} 28. Be2 {[%clk 0:00:39]}  b5 {[%clk 0:00:09]} 29. Qb3 {[%clk 0:00:38]}  Be7 {[%clk 0:00:08]} 30. Bf3 {[%clk 0:00:32]}  a6 {[%clk 0:00:09]} 31. a4 {[%clk 0:00:18]}  c5 {[%clk 0:00:09]} 32. bxc5 {[%clk 0:00:17]}  Rxc5 {[%clk 0:00:05]} 33. Rxc5 {[%clk 0:00:17]}  Rxc5 {[%clk 0:00:06]} 34. Ra1 {[%clk 0:00:13]}  Bf6 {[%clk 0:00:04]} 35. Ra2 {[%clk 0:00:13]}  Qc6 {[%clk 0:00:03]} 36. axb5 {[%clk 0:00:12]}  Rxb5 {[%clk 0:00:03]} 37. Qd3 {[%clk 0:00:12]}  Kg7 {[%clk 0:00:03]} 38. Qe4 {[%clk 0:00:11]}  Qd7 {[%clk 0:00:02]} 39. Rc2 {[%clk 0:00:10]}  Rb2 {[%clk 0:00:02]} 40. Rxb2 {[%clk 0:00:09]}  Bxb2 {[%clk 0:00:03]} 41. Qc4 {[%clk 0:00:08]}  Bf6 {[%clk 0:00:02]} 42. Qxa6 {[%clk 0:00:07]}  Ne7 {[%clk 0:00:02]} 43. Qe2 {[%clk 0:00:08]}  Nf5 {[%clk 0:00:02]} 44. Be4 {[%clk 0:00:08]}  Nd4 {[%clk 0:00:02]} 45. Qd3 {[%clk 0:00:08]}  Qd8 {[%clk 0:00:02]} 46. Be3 {[%clk 0:00:09]}  Nf5 {[%clk 0:00:02]} 47. Qxd8 {[%clk 0:00:08]}  Nxe3+ {[%clk 0:00:03]} 48. fxe3 {[%clk 0:00:09]}  Bxd8 {[%clk 0:00:03]} 49. Kf3 {[%clk 0:00:10]}  f5 {[%clk 0:00:04]} 50. Bd3 {[%clk 0:00:10]}  Kf6 {[%clk 0:00:04]} 51. Bc4 {[%clk 0:00:11]}  Bc7 {[%clk 0:00:04]} 52. e4 {[%clk 0:00:11]}  fxe4+ {[%clk 0:00:04]} 53. Kxe4 {[%clk 0:00:12]}  e5 {[%clk 0:00:05]} 54. fxe5+ {[%clk 0:00:11]}  Bxe5 {[%clk 0:00:06]} 55. Kf3 {[%clk 0:00:12]}  g5 {[%clk 0:00:06]} 56. hxg5+ {[%clk 0:00:12]}  Kxg5 {[%clk 0:00:07]} 57. Bf7 {[%clk 0:00:12]}  Bxg3 {[%clk 0:00:07]} 58. Kxg3 {[%clk 0:00:12]}  h4+ {[%clk 0:00:08]} 59. Kh3 {[%clk 0:00:13]}  Kh6 {[%clk 0:00:08]} 60. Kxh4 {[%clk 0:00:14]} 1/2-1/2


[Site "https://www.chess.com"]